fUSD/lending_fUSD_20260612
["ID","MTS","AMOUNT","RATE_DAILY","PERIOD"]
[424905057,1781260975000,-362.45980235,0.00011345,2]
[424905056,1781260975000,-500.0,0.00011345,2]
[424905051,1781260975000,-637.54019765,0.00011345,2]
[424905058,1781261008000,-187.84,0.00011252,2]
[424905063,1781261062000,-166.28,0.00011165,2]
[424905065,1781261116000,-959.26846236,0.00011006,2]
[424905066,1781261136000,-795.0298741,0.000117,4]
[424905067,1781261136000,-484.7716499,0.00010941,2]
[424905071,1781261137000,-186.72,0.00011041,2]
[424905072,1781261137000,-58.89466279,0.00011071,2]
[424905069,1781261137000,-170.77980535,0.00011006,2]
[424905070,1781261137000,-572.15,0.00011022,2]
[424905068,1781261137000,-93.50173229,0.00011006,2]
[424905073,1781261155000,-150.88533721,0.00011071,2]
[424905074,1781261156000,-313.75005122,0.00011299,2]
[424905075,1781261156000,-484.77164988,0.00011321,2]
[424905079,1781261156000,450.56,0.00011095,2]
[424905076,1781261156000,-300.0,0.00011347,2]
[424905078,1781261156000,-166.66,0.00011389,2]
[424905077,1781261156000,-478.00419248,0.00011348,2]
[424905081,1781261161000,-166.66,0.00011624,2]
[424905088,1781261161000,-500.0,0.00011743,2]
[424905080,1781261161000,-300.0,0.00011478,2]
[424905082,1781261161000,-250.0,0.00011685,2]
[424905084,1781261161000,-500.0,0.00011743,2]
[424905083,1781261161000,-484.77164988,0.000117,2]
[424905085,1781261161000,-500.0,0.00011743,2]
[424905086,1781261161000,-500.0,0.00011743,2]
[424905087,1781261161000,-500.0,0.00011743,2]
[424905096,1781261161000,-300.0,0.00011743,2]
[424905092,1781261161000,-342.7630011,0.00011743,2]
[424905090,1781261161000,-500.0,0.00011743,2]
[424905091,1781261161000,-500.0,0.00011743,2]
[424905093,1781261161000,-500.0,0.00011743,2]
[424905094,1781261161000,-500.0,0.00011743,2]
[424905097,1781261161000,-150.0,0.00011743,2]
[424905095,1781261161000,-500.0,0.00011743,2]
[424905098,1781261161000,-312.05945544,0.00011744,2]
[424905089,1781261161000,-500.0,0.00011743,2]
[424905099,1781261175000,-3335.0,0.00011744,2]
[424905100,1781261208000,-1488.74,0.00011561,2]
[424905102,1781261262000,-192.46367513,0.000115,4]
[424905103,1781261262000,-7.53632487,0.000115,4]
[424905104,1781261262000,-142.46367513,0.00011549,2]
[424905101,1781261262000,-150.0,0.00011152,2]
[424905106,1781261262000,-500.0,0.000116,4]
[424905108,1781261262000,-268.88421021,0.00011743,2]
[424905107,1781261262000,-800.0,0.000117,4]
[424905109,1781261262000,-8338.51486102,0.00011744,2]
[424905105,1781261262000,-92.60092877,0.00011549,2]
[424905110,1781261265000,-10000.0,0.00011744,2]
[424905111,1781261269000,-10000.0,0.00011744,2]
[424905113,1781261271000,-291.24,0.00011308,2]
[424905112,1781261271000,-10000.0,0.00011744,2]
[424905114,1781261272000,-9708.76,0.00011744,2]
[424905116,1781261273000,-1132.94216956,0.00011759,2]
[424905115,1781261273000,-7675.74838354,0.00011744,2]
[424905118,1781261273000,-191.3094469,0.00011804,2]
[424905117,1781261273000,-1000.0,0.000118,4]
[424905121,1781261281000,-5000.37782749,0.00011804,2]
[424905119,1781261281000,-190.94161941,0.00011744,2]
[424905120,1781261281000,-4808.6805531,0.00011804,2]
[424905123,1781261282000,-9850.0,0.00011804,2]
[424905122,1781261282000,-150.0,0.00011803,2]
[424905124,1781261315000,-160.0,0.00011744,2]
[424905125,1781261347000,-196.0,0.00011366,2]
[424905126,1781261368000,-583.73,0.00011366,2]
[424905127,1781261368000,-188.21894715,0.00011643,2]
[424905128,1781261368000,-500.0,0.00011643,2]
[424905129,1781261368000,-500.0,0.00011643,2]
[424905131,1781261368000,-2000.0,0.00011643,2]
[424905130,1781261368000,-250.0,0.00011643,2]
[424905132,1781261368000,-12078.40762975,0.00011644,2]
[424905134,1781261379000,-500.0,0.00011643,2]
[424905133,1781261379000,-366.55683617,0.00011588,2]
[424905138,1781261380000,-171.36030383,0.00011573,2]
[424905139,1781261380000,-9828.63969617,0.00011644,2]
[424905136,1781261380000,-199.48738674,0.00011643,3]
[424905137,1781261380000,-8433.95577709,0.00011644,2]
[424905135,1781261380000,-500.0,0.00011643,2]
[424905140,1781261381000,-10000.0,0.00011644,2]
[424905141,1781261382000,-10000.0,0.00011644,2]
[424905142,1781261388000,-5000.0,0.00011644,2]
[424905146,1781261432000,-830.68160655,0.00011544,2]
[424905145,1781261432000,-150.0,0.00011226,2]
[424905152,1781261432000,-500.0,0.00011643,2]
[424905153,1781261432000,-2806.0140358,0.00011644,2]
[424905154,1781261432000,-378.71365915,0.00011644,2]
[424905147,1781261432000,-1901.57243958,0.00011544,2]
[424905149,1781261432000,-154.98234113,0.00011544,2]
[424905150,1781261432000,-437.23685836,0.00011643,2]
[424905151,1781261432000,-62.76314164,0.00011643,2]
[424905156,1781261432000,-232454.65547382,0.00011644,2]
[424905155,1781261432000,-1466.83551856,0.00011644,2]
[424905157,1781261432000,-70015.35136349,0.00011644,2]
[424905158,1781261432000,-797.59445327,0.00011644,2]
[424905160,1781261432000,-292.97700002,0.00011644,2]
[424905159,1781261432000,-966.4698738,0.00011644,2]
[424905148,1781261432000,-50.07902139,0.00011544,2]
[424905174,1781261438000,-184.92175472,0.00011634,2]
[424905173,1781261438000,-517.89407854,0.00011573,2]
[424905172,1781261438000,-160.0,0.00011544,2]
[424905175,1781261438000,-184.92175472,0.00011634,2]
[424905181,1781261438000,-127382.0,0.00011644,2]
[424905178,1781261438000,-1217888.25357351,0.00011644,2]
[424905176,1781261438000,-402746.32424637,0.00011644,2]
[424905177,1781261438000,-732734.06127271,0.00011644,2]
[424905184,1781261438000,-500.22722923,0.00011644,2]
[424905180,1781261438000,-959.26846236,0.00011644,2]
[424905183,1781261438000,-11742.95849212,0.00011644,2]
[424905182,1781261438000,-1069.11,0.00011644,2]
[424905186,1781261438000,-3653.7485377,0.00011644,2]
[424905185,1781261438000,-1007.20313469,0.00011644,2]
[424905179,1781261438000,-795.0298741,0.00011644,2]
[424905231,1781261440000,-4654.78606281,0.00011644,2]
[424905238,1781261441000,-488.32685115,0.00011644,2]
[424905239,1781261441000,-1591.98853866,0.00011644,2]
[424905236,1781261441000,-3720.49673213,0.00011644,2]
[424905234,1781261441000,-3150.0,0.00011644,2]
[424905237,1781261441000,-300.0,0.00011644,2]
[424905235,1781261441000,-19508.8412873,0.00011644,2]
[424905249,1781261443000,-600583.26035516,0.00011644,2]
[424905248,1781261443000,-520.84570248,0.00011644,2]
[424905250,1781261443000,-2377.12538775,0.00011644,2]
[424905252,1781261443000,-11365.94469091,0.00011644,2]
[424905251,1781261443000,-260456.73912933,0.00011644,2]
[424905273,1781261446000,-168.2185,0.00011904,2]
[424905271,1781261446000,-3020.29,0.000119,2]
[424905269,1781261446000,-9999.99,0.000119,2]
[424905266,1781261446000,-43519.82,0.00011844,2]
[424905268,1781261446000,-1300.0,0.000119,4]
[424905272,1781261446000,-150.99,0.000119,2]
[424905270,1781261446000,-24999.99,0.000119,2]
[424905267,1781261446000,-166.66,0.00011859,2]
[424905265,1781261446000,-184.50687914,0.00011744,2]
[424905263,1781261446000,-2296.06281595,0.00011673,2]
[424905262,1781261446000,-224750.01155446,0.00011644,2]
[424905261,1781261446000,-824.88939803,0.00011644,2]
[424905260,1781261446000,-708.94500612,0.00011644,2]
[424905274,1781261446000,-8726.68,0.00011904,2]
[424905264,1781261446000,-242.18777373,0.00011744,2]
[424905275,1781261446000,-200.0,0.00011934,2]
[424905279,1781261446000,-160.0,0.00012026,2]
[424905282,1781261446000,-6059.34609855,0.00012173,2]
[424905278,1781261446000,-999.99,0.00011934,2]
[424905290,1781261446000,-500.0,0.00012207,2]
[424905287,1781261446000,-500.0,0.00012207,2]
[424905294,1781261446000,-500.0,0.00012207,2]
[424905293,1781261446000,-500.0,0.00012207,2]
[424905286,1781261446000,-500.0,0.00012207,2]
[424905284,1781261446000,-15990.71022228,0.00012173,2]
[424905292,1781261446000,-500.0,0.00012207,2]
[424905285,1781261446000,-500.0,0.00012207,2]
[424905283,1781261446000,-10689.40475507,0.00012173,2]
[424905277,1781261446000,-499.99,0.00011934,2]
[424905280,1781261446000,-165.36,0.00012051,2]
[424905281,1781261446000,-166.66,0.00012094,2]
[424905276,1781261446000,-13331.05,0.00011934,2]
[424905288,1781261446000,-500.0,0.00012207,2]
[424905325,1781261447000,-500.0,0.00012398,2]
[424905317,1781261447000,-500.0,0.00012397,2]
[424905316,1781261447000,-500.0,0.00012397,2]
[424905318,1781261447000,-500.0,0.00012397,2]
[424905322,1781261447000,-500.0,0.00012397,2]
[424905323,1781261447000,-250.0,0.00012398,2]
[424905320,1781261447000,-500.0,0.00012397,2]
[424905330,1781261447000,-500.0,0.00012481,2]
[424905324,1781261447000,-500.0,0.00012398,2]
[424905326,1781261447000,-500.0,0.00012398,2]
[424905327,1781261447000,-500.0,0.00012398,2]
[424905329,1781261447000,-500.0,0.00012398,2]
[424905328,1781261447000,-500.0,0.00012398,2]
[424905332,1781261447000,-33280.8127,0.00012499,2]
[424905310,1781261447000,-484.98605231,0.00012381,2]
[424905331,1781261447000,-2000.0,0.00012499,2]
[424905319,1781261447000,-500.0,0.00012397,2]
[424905312,1781261447000,-500.0,0.00012397,2]
[424905306,1781261447000,-250.0,0.00012267,2]
[424905308,1781261447000,-166.66,0.00012329,2]
[424905334,1781261447000,-250.0,0.00012502,2]
[424905295,1781261447000,-500.0,0.00012207,2]
[424905296,1781261447000,-500.0,0.00012207,2]
[424905303,1781261447000,-379.0,0.00012207,2]
[424905297,1781261447000,-500.0,0.00012207,2]
[424905300,1781261447000,-500.0,0.00012207,2]
[424905302,1781261447000,-500.0,0.00012207,2]
[424905314,1781261447000,-500.0,0.00012397,2]
[424905298,1781261447000,-500.0,0.00012207,2]
[424905301,1781261447000,-500.0,0.00012207,2]
[424905304,1781261447000,-500.0,0.00012207,2]
[424905305,1781261447000,-300.0,0.00012267,2]
[424905309,1781261447000,-220.78,0.00012329,2]
[424905311,1781261447000,-500.0,0.00012397,2]
[424905315,1781261447000,-500.0,0.00012397,2]
[424905307,1781261447000,-166.28,0.00012281,2]
[424905299,1781261447000,-500.0,0.00012207,2]
[424905333,1781261447000,-300.0,0.00012502,2]
[424905321,1781261447000,-500.0,0.00012397,2]
[424905337,1781261447000,-165.36,0.00012548,2]
[424905355,1781261447000,-500.0,0.00013698,2]
[424905359,1781261447000,-500.0,0.00013698,2]
[424905358,1781261447000,-500.0,0.00013698,2]
[424905360,1781261447000,-500.0,0.00013698,2]
[424905361,1781261447000,-500.0,0.00013698,2]
[424905362,1781261447000,-500.0,0.00013698,2]
[424905363,1781261447000,-500.0,0.00013698,2]
[424905357,1781261447000,-500.0,0.00013698,2]
[424905364,1781261447000,-500.0,0.00013698,2]
[424905371,1781261447000,-500.0,0.00013698,2]
[424905369,1781261447000,-500.0,0.00013698,2]
[424905373,1781261447000,-500.0,0.00013698,2]
[424905367,1781261447000,-500.0,0.00013698,2]
[424905368,1781261447000,-500.0,0.00013698,2]
[424905370,1781261447000,-500.0,0.00013698,2]
[424905335,1781261447000,-166.66,0.00012518,2]
[424905365,1781261447000,-500.0,0.00013698,2]
[424905356,1781261447000,-500.0,0.00013698,2]
[424905366,1781261447000,-500.0,0.00013698,2]
[424905353,1781261447000,-243.29635154,0.00013698,2]
[424905336,1781261447000,-340.7,0.00012539,2]
[424905348,1781261447000,-165.36,0.00013543,2]
[424905340,1781261447000,-166.66,0.00012931,2]
[424905339,1781261447000,-250.0,0.00012918,2]
[424905338,1781261447000,-255.0,0.00012877,2]
[424905345,1781261447000,-166.66,0.00013345,2]
[424905342,1781261447000,-165.36,0.00013045,2]
[424905346,1781261447000,-166.28,0.00013398,2]
[424905341,1781261447000,-1488.74,0.00013007,2]
[424905344,1781261447000,-235.0646039,0.00013282,2]
[424905347,1781261447000,-40228.78208601,0.0001344,2]
[424905372,1781261447000,-500.0,0.00013698,2]
[424905351,1781261447000,-500.0,0.00013698,2]
[424905350,1781261447000,-500.0,0.00013697,2]
[424905349,1781261447000,-300.51,0.00013632,2]
[424905354,1781261447000,-500.0,0.00013698,2]
[424905343,1781261447000,-1132.94216955,0.0001319,2]
[424905352,1781261447000,-500.0,0.00013698,2]
[424905392,1781261448000,-500.0,0.00013698,2]
[424905388,1781261448000,-500.0,0.00013698,2]
[424905390,1781261448000,-500.0,0.00013698,2]
[424905395,1781261448000,-500.0,0.00013698,2]
[424905393,1781261448000,-500.0,0.00013698,2]
[424905391,1781261448000,-500.0,0.00013698,2]
[424905394,1781261448000,-500.0,0.00013698,2]
[424905396,1781261448000,-500.0,0.00013698,2]
[424905397,1781261448000,-500.0,0.00013698,2]
[424905385,1781261448000,-500.0,0.00013698,2]
[424905387,1781261448000,-500.0,0.00013698,2]
[424905383,1781261448000,-500.0,0.00013698,2]
[424905381,1781261448000,-500.0,0.00013698,2]
[424905384,1781261448000,-500.0,0.00013698,2]
[424905382,1781261448000,-500.0,0.00013698,2]
[424905378,1781261448000,-500.0,0.00013698,2]
[424905377,1781261448000,-500.0,0.00013698,2]
[424905375,1781261448000,-500.0,0.00013698,2]
[424905380,1781261448000,-500.0,0.00013698,2]
[424905376,1781261448000,-500.0,0.00013698,2]
[424905379,1781261448000,-500.0,0.00013698,2]
[424905374,1781261448000,-500.0,0.00013698,2]
[424905400,1781261448000,-500.0,0.00013698,2]
[424905386,1781261448000,-500.0,0.00013698,2]
[424905405,1781261448000,-1954.37,0.00013698,2]
[424905389,1781261448000,-500.0,0.00013698,2]
[424905403,1781261448000,-1954.37,0.00013698,2]
[424905399,1781261448000,-500.0,0.00013698,2]
[424905425,1781261448000,-1115.00976159,0.00013698,2]
[424905421,1781261448000,-1466.01,0.00013698,2]
[424905424,1781261448000,-1466.01,0.00013698,2]
[424905422,1781261448000,-1466.01,0.00013698,2]
[424905420,1781261448000,-1466.01,0.00013698,2]
[424905417,1781261448000,-1466.01,0.00013698,2]
[424905416,1781261448000,-1466.01,0.00013698,2]
[424905418,1781261448000,-1466.01,0.00013698,2]
[424905419,1781261448000,-1466.01,0.00013698,2]
[424905414,1781261448000,-500.0,0.00013698,2]
[424905415,1781261448000,-1466.01,0.00013698,2]
[424905423,1781261448000,-1466.01,0.00013698,2]
[424905412,1781261448000,-1954.37,0.00013698,2]
[424905409,1781261448000,-1954.37,0.00013698,2]
[424905411,1781261448000,-1954.37,0.00013698,2]
[424905410,1781261448000,-1954.37,0.00013698,2]
[424905408,1781261448000,-1954.37,0.00013698,2]
[424905407,1781261448000,-1954.37,0.00013698,2]
[424905406,1781261448000,-1954.37,0.00013698,2]
[424905401,1781261448000,-1954.37,0.00013698,2]
[424905404,1781261448000,-1954.37,0.00013698,2]
[424905402,1781261448000,-1954.37,0.00013698,2]
[424905398,1781261448000,-500.0,0.00013698,2]
[424905413,1781261448000,-500.0,0.00013698,2]
[424905428,1781261449000,-517.04953107,0.00013698,2]
[424905426,1781261449000,-351.00023841,0.00013698,2]
[424905427,1781261449000,-68.27728476,0.00013698,2]
[424905430,1781261525000,-433.73,0.0001,2]
[424905437,1781261579000,-500.0,0.00011643,2]
[424905440,1781261632000,-1529.7077936,0.00011411,2]
[424905441,1781261651000,-1267.3082064,0.00011411,2]
[424905450,1781261704000,-416.57750592,0.00011559,2]
[424905451,1781261704000,-291.10895735,0.00011615,2]
[424905448,1781261704000,-2574.06392788,0.00011544,2]
[424905449,1781261704000,-5649.5633592,0.00011544,2]
[424905447,1781261704000,-1068.68624965,0.00011544,2]
[424905446,1781261704000,-173.866,0.00011411,2]
[424905453,1781261706000,-208.89104265,0.00011615,2]
[424905452,1781261706000,-965.45129466,0.00011544,2]
[424905454,1781261706000,-500.0,0.00011615,2]
[424905455,1781261706000,-527.56846123,0.00011615,2]
[424905456,1781261706000,-500.0,0.00011615,2]
[424905457,1781261706000,-500.0,0.00011615,2]
[424905458,1781261706000,-500.0,0.00011615,2]
[424905462,1781261706000,-500.0,0.00011615,2]
[424905460,1781261706000,-500.0,0.00011615,2]
[424905466,1781261706000,-3418.40494348,0.00011616,2]
[424905464,1781261706000,-500.0,0.00011615,2]
[424905459,1781261706000,-500.0,0.00011615,2]
[424905463,1781261706000,-204.00829025,0.00011615,2]
[424905461,1781261706000,-500.0,0.00011615,2]
[424905465,1781261706000,-175.67596773,0.00011615,2]
[424905467,1781261707000,-9728.59505652,0.00011616,2]
[424905468,1781261707000,-271.40494348,0.00011643,2]
[424905475,1781261708000,-7356.08706226,0.00011644,2]
[424905473,1781261708000,-500.0,0.00011643,2]
[424905471,1781261708000,-500.0,0.00011643,2]
[424905472,1781261708000,-500.0,0.00011643,2]
[424905469,1781261708000,-143.91293774,0.00011643,2]
[424905470,1781261708000,-500.0,0.00011643,2]
[424905474,1781261708000,-500.0,0.00011643,2]
[424905476,1781261757000,-253.21635992,0.00011544,2]
[424905477,1781261810000,-200.0,0.000115,4]
[424905483,1781261864000,-3300.0,0.000115,4]
[424905485,1781261917000,-10392.28119746,9.04e-05,2]
[424905486,1781261970000,-500.0,9.039e-05,2]
[424905491,1781261991000,-500.0,9.039e-05,2]
[424905490,1781261991000,-500.0,9.039e-05,2]
[424905489,1781261991000,-500.0,9.039e-05,2]
[424905488,1781261991000,-500.0,9.039e-05,2]
[424905487,1781261991000,-344.37516846,9.031e-05,2]
[424905500,1781261992000,-500.0,9.039e-05,2]
[424905501,1781261992000,-500.0,9.039e-05,2]
[424905499,1781261992000,-500.0,9.039e-05,2]
[424905497,1781261992000,-500.0,9.039e-05,2]
[424905498,1781261992000,-259.10769938,9.039e-05,2]
[424905493,1781261992000,-500.0,9.039e-05,2]
[424905494,1781261992000,-500.0,9.039e-05,2]
[424905495,1781261992000,-500.0,9.039e-05,2]
[424905492,1781261992000,-500.0,9.039e-05,2]
[424905503,1781261992000,-500.0,9.039e-05,2]
[424905496,1781261992000,-500.0,9.039e-05,2]
[424905502,1781261992000,-500.0,9.039e-05,2]
[424905511,1781261992000,-345.60150168,9.039e-05,2]
[424905506,1781261992000,-500.0,9.039e-05,2]
[424905512,1781261992000,-2000.0,0.00010652,2]
[424905515,1781261992000,-199.5,0.00011149,2]
[424905514,1781261992000,-1829.44,0.00011011,2]
[424905513,1781261992000,-164.78,0.00010691,2]
[424905516,1781261992000,-792.79337796,0.00011287,2]
[424905504,1781261992000,-500.0,9.039e-05,2]
[424905508,1781261992000,-500.0,9.039e-05,2]
[424905509,1781261992000,-172.80075084,9.039e-05,2]
[424905505,1781261992000,-172.80075084,9.039e-05,2]
[424905507,1781261992000,-172.80075084,9.039e-05,2]
[424905510,1781261992000,-500.0,9.039e-05,2]
[424905519,1781262096000,-500.0,9.039e-05,2]
[424905521,1781262096000,-500.0,9.039e-05,2]
[424905522,1781262096000,-500.0,9.039e-05,2]
[424905520,1781262096000,-172.80075084,9.039e-05,2]
[424905524,1781262096000,-500.0,9.039e-05,2]
[424905526,1781262096000,-160.0,9.041e-05,2]
[424905525,1781262096000,-161.04135151,9.039e-05,2]
[424905528,1781262096000,-906.15789765,0.00010577,2]
[424905527,1781262096000,-500.0,9.943e-05,2]
[424905523,1781262096000,-500.0,9.039e-05,2]
[424905529,1781262135000,-207.0,0.00010048,2]
[424905530,1781262136000,-693.84210235,0.00010577,2]
[424905531,1781262136000,-150.38,0.00010706,2]
[424905533,1781262136000,-606.64215516,0.00010744,2]
[424905532,1781262136000,-595.50393329,0.00010736,2]
[424905535,1781262136000,-210.02034548,0.00011287,2]
[424905538,1781262136000,-300.0,0.000115,4]
[424905537,1781262136000,-200.0,0.000115,4]
[424905536,1781262136000,-329.4939,0.000114,2]
[424905534,1781262136000,-1036.64662204,0.00011287,2]
[424905539,1781262137000,-200.0,0.000115,4]
[424905540,1781262137000,-243.47094168,0.000115,2]
[424905542,1781262158000,-167.33,0.00011072,2]
[424905543,1781262158000,-5232.67,0.000115,2]
[424905555,1781262189000,-999.99,0.00011536,2]
[424905544,1781262189000,-4523.84905832,0.000115,2]
[424905545,1781262189000,-299.99,0.000115,2]
[424905546,1781262189000,-1032.77,0.000115,2]
[424905548,1781262189000,-151.0,0.000115,2]
[424905551,1781262189000,-150.0,0.000115,2]
[424905547,1781262189000,-200.0,0.000115,4]
[424905550,1781262189000,-200.0,0.000115,4]
[424905552,1781262189000,-190.83726697,0.000115,2]
[424905553,1781262189000,-2500.0,0.00011516,2]
[424905556,1781262189000,-1201.53,0.00011536,2]
[424905554,1781262189000,-150.99,0.00011536,2]
[424905557,1781262189000,-1106.89273303,0.00011536,2]
[424905549,1781262189000,-151.0,0.000115,2]
[424905560,1781262216000,-500.0,0.00011499,2]
[424905559,1781262216000,-500.0,0.00011499,2]
[424905562,1781262216000,-500.0,0.00011499,2]
[424905561,1781262216000,-500.0,0.00011499,2]
[424905563,1781262216000,-500.0,0.00011499,2]
[424905569,1781262216000,-346.0,0.00011499,2]
[424905564,1781262216000,-500.0,0.00011499,2]
[424905566,1781262216000,-500.0,0.00011499,2]
[424905568,1781262216000,-500.0,0.00011499,2]
[424905567,1781262216000,-500.0,0.00011499,2]
[424905565,1781262216000,-500.0,0.00011499,2]
[424905570,1781262242000,-1986.905697,0.00011499,2]
[424905573,1781262243000,-160.0,0.00011499,2]
[424905571,1781262243000,-154.0,0.00011499,2]
[424905572,1781262243000,-500.0,0.00011499,2]
[424905575,1781262243000,-370.97099125,0.00011499,2]
[424905574,1781262243000,-500.0,0.00011499,2]
[424905576,1781262243000,-500.0,0.00011499,2]
[424905578,1781262243000,-300.0,0.000115,2]
[424905581,1781262243000,-200.0,0.000115,4]
[424905580,1781262243000,-500.0,0.000115,2]
[424905584,1781262243000,419.02900875,0.00011499,2]
[424905579,1781262243000,-250.0,0.000115,2]
[424905583,1781262243000,500.0,0.00011499,2]
[424905582,1781262243000,500.0,0.00011499,2]
[424905577,1781262243000,-500.0,0.00011499,2]
[424905592,1781262266000,-80.97099125,0.00011499,2]
[424905594,1781262266000,-500.0,0.00011499,2]
[424905591,1781262266000,-166.66,0.00011397,2]
[424905593,1781262266000,-500.0,0.00011499,2]
[424905589,1781262266000,-166.66,0.00011178,2]
[424905588,1781262266000,-166.66,0.00011068,2]
[424905590,1781262266000,-166.66,0.00011288,2]
[424905587,1781262266000,-166.66,0.00010959,2]
[424905595,1781262270000,654.12,0.00011096,2]
[424905596,1781262270000,3227.60900875,0.00011444,2]
[424905598,1781262296000,-929.0,0.00011444,2]
[424905597,1781262296000,-1031.99,0.00010775,2]
[424905599,1781262350000,-300.0,0.00011443,2]
[424905601,1781262352000,-7037.48180875,0.00011444,2]
[424905600,1781262352000,-24.51819125,0.00011444,2]
[424905604,1781262377000,-6408.0,0.00011444,2]
[424905603,1781262377000,-150.0,0.00011443,2]
[424905605,1781262402000,-20552.04807736,0.00011444,2]
[424905606,1781262426000,-36140.43112397,0.00011444,2]
[424905607,1781262446000,-171.83541152,0.00011407,2]
[424905608,1781262451000,-319.27768115,0.00010707,2]
[424905612,1781262498000,-322.06231885,0.00010707,2]
[424905613,1781262510000,-928.54917092,0.00010707,2]
[424905614,1781262551000,-1604.28918441,0.000108,3]
[424905615,1781262553000,-71.45082908,0.00010707,2]
[424905618,1781262553000,-9177.88346534,0.000109,3]
[424905617,1781262553000,-250.0,0.00010813,2]
[424905616,1781262553000,-3595.71081559,0.000108,3]
[424905620,1781262554000,200.0,0.00010606,2]
[424905619,1781262554000,-1322.11653466,0.000109,3]
[424905627,1781262566000,-500.0,0.00011343,2]
[424905626,1781262566000,-500.0,0.00011343,2]
[424905625,1781262566000,-500.0,0.00011343,2]
[424905624,1781262566000,-500.0,0.00011343,2]
[424905623,1781262566000,-500.0,0.00011343,2]
[424905622,1781262566000,-500.0,0.00011343,2]
[424905621,1781262566000,-500.0,0.00011343,2]
[424905628,1781262574000,-500.0,0.00011343,2]
[424905631,1781262574000,-16.06162798,0.00011343,2]
[424905629,1781262574000,-500.0,0.00011343,2]
[424905630,1781262574000,-500.0,0.00011343,2]
[424905658,1781262631000,-500.0,0.00011343,2]
[424905656,1781262631000,-500.0,0.00011343,2]
[424905650,1781262631000,-500.0,0.00011343,2]
[424905652,1781262631000,-500.0,0.00011343,2]
[424905639,1781262631000,-500.0,0.00011343,2]
[424905648,1781262631000,-500.0,0.00011343,2]
[424905633,1781262631000,-300.0,0.00011342,2]
[424905643,1781262631000,-500.0,0.00011343,2]
[424905641,1781262631000,-500.0,0.00011343,2]
[424905634,1781262631000,-250.0,0.00011342,2]
[424905632,1781262631000,-8335.25431397,0.000113,2]
[424905637,1781262631000,-300.0,0.00011343,2]
[424905645,1781262631000,-500.0,0.00011343,2]
[424905654,1781262631000,-500.0,0.00011343,2]
[424905664,1781262631000,-500.0,0.00011343,2]
[424905662,1781262631000,-500.0,0.00011343,2]
[424905660,1781262631000,-500.0,0.00011343,2]
[424905694,1781262631000,-500.0,0.00011343,2]
[424905693,1781262631000,-500.0,0.00011343,2]
[424905687,1781262631000,-500.0,0.00011343,2]
[424905691,1781262631000,-500.0,0.00011343,2]
[424905683,1781262631000,-500.0,0.00011343,2]
[424905689,1781262631000,-500.0,0.00011343,2]
[424905681,1781262631000,-477.57128171,0.00011343,2]
[424905679,1781262631000,-500.0,0.00011343,2]
[424905677,1781262631000,-500.0,0.00011343,2]
[424905675,1781262631000,-500.0,0.00011343,2]
[424905669,1781262631000,-500.0,0.00011343,2]
[424905667,1781262631000,-500.0,0.00011343,2]
[424905685,1781262631000,-500.0,0.00011343,2]
[424905715,1781262632000,-500.0,0.00011343,2]
[424905714,1781262632000,-500.0,0.00011343,2]
[424905713,1781262632000,-500.0,0.00011343,2]
[424905716,1781262632000,-500.0,0.00011343,2]